[Event "Titled Tuesday Blitz June 27 Early 2023"]
[White "Melikhov, Evgeny V."]
[Black "Perez, Maximiliano"]
[WhiteFideId "4122046"]
[BlackFideId "117234"]
[WhiteElo "2378"]
[BlackElo "2555"]
[Result "1-0"]
[Round "8"]
[TimeControl "180+2"]
[Date "2023.06.27"]
[WhiteClock "0:00:04"]
[BlackClock "0:00:05"]
[Board "98"]

1. d4 {[%clk 0:03:00]}  Nf6 {[%clk 0:02:56]} 2. c4 {[%clk 0:03:00]}  e6 {[%clk 0:02:56]} 3. Nc3 {[%clk 0:03:00]}  Bb4 {[%clk 0:02:55]} 4. Qc2 {[%clk 0:03:00]}  O-O {[%clk 0:02:54]} 5. e4 {[%clk 0:02:58]}  Bxc3+ {[%clk 0:02:53]} 6. bxc3 {[%clk 0:02:57]}  d6 {[%clk 0:02:54]} 7. e5 {[%clk 0:02:56]}  dxe5 {[%clk 0:02:53]} 8. dxe5 {[%clk 0:02:56]}  Nfd7 {[%clk 0:02:46]} 9. Nf3 {[%clk 0:02:56]}  Nc6 {[%clk 0:02:46]} 10. Bd3 {[%clk 0:02:51]}  Ndxe5 {[%clk 0:02:42]} 11. Bxh7+ {[%clk 0:02:48]}  Kh8 {[%clk 0:02:42]} 12. Nxe5 {[%clk 0:02:20]}  Nxe5 {[%clk 0:02:42]} 13. Be4 {[%clk 0:02:13]}  f5 {[%clk 0:02:40]} 14. Qe2 {[%clk 0:02:10]}  Qh4 {[%clk 0:02:10]} 15. Bc2 {[%clk 0:01:58]}  Nf7 {[%clk 0:01:54]} 16. O-O {[%clk 0:01:52]}  Bd7 {[%clk 0:01:51]} 17. Ba3 {[%clk 0:01:41]}  Rfe8 {[%clk 0:01:49]} 18. Rad1 {[%clk 0:01:35]}  Bc6 {[%clk 0:01:49]} 19. f3 {[%clk 0:01:34]}  Ng5 {[%clk 0:01:42]} 20. Qe5 {[%clk 0:01:22]}  Qxc4 {[%clk 0:01:35]} 21. Bb3 {[%clk 0:01:09]}  Qh4 {[%clk 0:01:34]} 22. Bb2 {[%clk 0:00:54]}  Rad8 {[%clk 0:01:19]} 23. c4 {[%clk 0:00:49]}  Qh6 {[%clk 0:01:01]} 24. h4 {[%clk 0:00:47]}  Nf7 {[%clk 0:00:36]} 25. Qxc7 {[%clk 0:00:46]}  Rxd1 {[%clk 0:00:32]} 26. Rxd1 {[%clk 0:00:46]}  Qg6 {[%clk 0:00:30]} 27. Kh2 {[%clk 0:00:35]}  e5 {[%clk 0:00:26]} 28. c5 {[%clk 0:00:27]}  Nh6 {[%clk 0:00:25]} 29. Rd8 {[%clk 0:00:22]}  Qf6 {[%clk 0:00:16]} 30. Rxe8+ {[%clk 0:00:21]}  Bxe8 {[%clk 0:00:16]} 31. Qxe5 {[%clk 0:00:20]}  Qxh4+ {[%clk 0:00:16]} 32. Kg1 {[%clk 0:00:20]}  Qg5 {[%clk 0:00:14]} 33. Qxe8+ {[%clk 0:00:18]}  Kh7 {[%clk 0:00:15]} 34. Qe5 {[%clk 0:00:14]}  Qg6 {[%clk 0:00:12]} 35. Bc2 {[%clk 0:00:11]}  Qg5 {[%clk 0:00:11]} 36. g4 {[%clk 0:00:10]}  Kg8 {[%clk 0:00:06]} 37. Bxf5 {[%clk 0:00:09]}  Nxf5 {[%clk 0:00:06]} 38. Qxf5 {[%clk 0:00:06]}  Qd2 {[%clk 0:00:06]} 39. Qe6+ {[%clk 0:00:05]}  Kh7 {[%clk 0:00:05]} 40. Qe4+ {[%clk 0:00:05]}  Kg8 {[%clk 0:00:05]} 41. Bd4 {[%clk 0:00:04]}  Qd1+ {[%clk 0:00:04]} 42. Kg2 {[%clk 0:00:05]}  Qd2+ {[%clk 0:00:04]} 43. Kg3 {[%clk 0:00:05]}  Qxa2 {[%clk 0:00:05]} 44. Qe5 {[%clk 0:00:05]}  Qf7 {[%clk 0:00:05]} 45. g5 {[%clk 0:00:05]}  Qd7 {[%clk 0:00:05]} 46. f4 {[%clk 0:00:04]}  a5 {[%clk 0:00:05]} 47. f5 {[%clk 0:00:05]}  a4 {[%clk 0:00:06]} 48. Qe6+ {[%clk 0:00:04]}  Qxe6 {[%clk 0:00:05]} 49. fxe6 {[%clk 0:00:05]}  g6 {[%clk 0:00:06]} 50. Bf6 {[%clk 0:00:04]}  Kf8 {[%clk 0:00:06]} 51. Kf4 {[%clk 0:00:05]}  a3 {[%clk 0:00:06]} 52. Ke5 {[%clk 0:00:05]}  a2 {[%clk 0:00:06]} 53. Kd6 {[%clk 0:00:05]}  Ke8 {[%clk 0:00:07]} 54. Kc7 {[%clk 0:00:05]}  b5 {[%clk 0:00:05]} 55. cxb6 {[%clk 0:00:04]} 1-0


[Site "https://www.chess.com"]

[Event "Titled Tuesday Blitz June 27 Early 2023"]
[White "Bruedigam, Martin"]
[Black "Sargsyan, Anna M."]
[WhiteFideId "24608033"]
[BlackFideId "13308130"]
[WhiteElo "2531"]
[BlackElo "2553"]
[Result "0-1"]
[Round "8"]
[TimeControl "180+2"]
[Date "2023.06.27"]
[WhiteClock "0:00:02"]
[BlackClock "0:00:43"]
[Board "99"]

1. d4 {[%clk 0:02:49]}  d5 {[%clk 0:02:59]} 2. c4 {[%clk 0:02:48]}  c6 {[%clk 0:02:59]} 3. Nf3 {[%clk 0:02:47]}  Nf6 {[%clk 0:03:00]} 4. e3 {[%clk 0:02:48]}  Bg4 {[%clk 0:03:00]} 5. Nc3 {[%clk 0:02:41]}  e6 {[%clk 0:02:59]} 6. h3 {[%clk 0:02:36]}  Bxf3 {[%clk 0:02:59]} 7. Qxf3 {[%clk 0:02:35]}  Nbd7 {[%clk 0:02:59]} 8. g3 {[%clk 0:02:32]}  Bb4 {[%clk 0:02:59]} 9. Bd2 {[%clk 0:02:32]}  O-O {[%clk 0:02:58]} 10. Rc1 {[%clk 0:02:27]}  Re8 {[%clk 0:02:58]} 11. cxd5 {[%clk 0:02:26]}  exd5 {[%clk 0:02:58]} 12. Bd3 {[%clk 0:02:25]}  Bxc3 {[%clk 0:02:57]} 13. Bxc3 {[%clk 0:02:25]}  Ne4 {[%clk 0:02:57]} 14. O-O {[%clk 0:02:22]}  Ndf6 {[%clk 0:02:57]} 15. Rfd1 {[%clk 0:02:16]}  Qd7 {[%clk 0:02:53]} 16. Kg2 {[%clk 0:02:15]}  Re6 {[%clk 0:02:48]} 17. Be1 {[%clk 0:02:13]}  Rae8 {[%clk 0:02:48]} 18. h4 {[%clk 0:02:09]}  h5 {[%clk 0:02:43]} 19. b4 {[%clk 0:02:07]}  g6 {[%clk 0:02:43]} 20. a4 {[%clk 0:02:04]}  Ng4 {[%clk 0:02:40]} 21. Bxe4 {[%clk 0:01:43]}  Rf6 {[%clk 0:02:35]} 22. Qe2 {[%clk 0:01:34]}  Rxe4 {[%clk 0:02:34]} 23. b5 {[%clk 0:01:34]}  Qf5 {[%clk 0:02:11]} 24. bxc6 {[%clk 0:01:28]}  bxc6 {[%clk 0:02:12]} 25. Rc3 {[%clk 0:01:21]}  Ree6 {[%clk 0:02:01]} 26. Rdc1 {[%clk 0:00:52]}  g5 {[%clk 0:01:56]} 27. f3 {[%clk 0:00:17]}  Nh6 {[%clk 0:01:55]} 28. Bf2 {[%clk 0:00:13]}  gxh4 {[%clk 0:01:28]} 29. gxh4 {[%clk 0:00:14]}  Kh8 {[%clk 0:01:08]} 30. Rg1 {[%clk 0:00:13]}  Rg6+ {[%clk 0:01:04]} 31. Kh2 {[%clk 0:00:13]}  Rxg1 {[%clk 0:01:00]} 32. Bxg1 {[%clk 0:00:12]}  Qf6 {[%clk 0:00:58]} 33. Bf2 {[%clk 0:00:12]}  Nf5 {[%clk 0:00:59]} 34. Rc1 {[%clk 0:00:08]}  Nxd4 {[%clk 0:00:57]} 35. Qd3 {[%clk 0:00:04]}  Nxf3+ {[%clk 0:00:57]} 36. Kg2 {[%clk 0:00:03]}  Nxh4+ {[%clk 0:00:53]} 37. Kf1 {[%clk 0:00:02]}  Nf5 {[%clk 0:00:48]} 38. Rb1 {[%clk 0:00:02]}  Nxe3+ {[%clk 0:00:43]} 39. Kg1 {[%clk 0:00:02]} 0-1


[Site "https://www.chess.com"]

[Event "Titled Tuesday Blitz June 27 Early 2023"]
[White "Mikhaylova, Irina"]
[Black "Belov, Alexei"]
[WhiteFideId "4109040"]
[BlackFideId "4128206"]
[WhiteElo "2322"]
[BlackElo "2543"]
[Result "0-1"]
[Round "8"]
[TimeControl "180+2"]
[Date "2023.06.27"]
[WhiteClock "0:00:15"]
[BlackClock "0:00:28"]
[Board "101"]

1. d4 {[%clk 0:02:59]}  e6 {[%clk 0:02:59]} 2. Nf3 {[%clk 0:03:00]}  d5 {[%clk 0:02:58]} 3. c4 {[%clk 0:03:00]}  Nf6 {[%clk 0:02:58]} 4. Bg5 {[%clk 0:03:00]}  Be7 {[%clk 0:02:58]} 5. e3 {[%clk 0:03:00]}  Nbd7 {[%clk 0:02:58]} 6. Nc3 {[%clk 0:03:00]}  O-O {[%clk 0:02:57]} 7. Qc2 {[%clk 0:03:01]}  c5 {[%clk 0:02:57]} 8. cxd5 {[%clk 0:03:01]}  Nxd5 {[%clk 0:02:57]} 9. Bxe7 {[%clk 0:03:00]}  Qxe7 {[%clk 0:02:57]} 10. Nxd5 {[%clk 0:02:58]}  exd5 {[%clk 0:02:57]} 11. dxc5 {[%clk 0:02:59]}  Nxc5 {[%clk 0:02:57]} 12. Be2 {[%clk 0:02:58]}  Bd7 {[%clk 0:02:57]} 13. O-O {[%clk 0:02:57]}  Rac8 {[%clk 0:02:57]} 14. Rfd1 {[%clk 0:02:39]}  Ba4 {[%clk 0:02:51]} 15. Qc3 {[%clk 0:02:32]}  Bxd1 {[%clk 0:02:48]} 16. Rxd1 {[%clk 0:02:31]}  Ne4 {[%clk 0:02:42]} 17. Qb3 {[%clk 0:02:08]}  Nf6 {[%clk 0:02:41]} 18. Nd4 {[%clk 0:02:07]}  a6 {[%clk 0:02:32]} 19. h3 {[%clk 0:02:06]}  g6 {[%clk 0:02:31]} 20. Bf3 {[%clk 0:02:06]}  Rfd8 {[%clk 0:02:30]} 21. Ne2 {[%clk 0:01:56]}  b5 {[%clk 0:02:22]} 22. Nd4 {[%clk 0:01:42]}  Qc5 {[%clk 0:02:16]} 23. Qd3 {[%clk 0:01:13]}  Qb4 {[%clk 0:02:09]} 24. Qd2 {[%clk 0:01:09]}  Qxd2 {[%clk 0:02:03]} 25. Rxd2 {[%clk 0:01:09]}  Rc1+ {[%clk 0:02:03]} 26. Kh2 {[%clk 0:01:09]}  Ne4 {[%clk 0:02:03]} 27. Bxe4 {[%clk 0:01:08]}  dxe4 {[%clk 0:02:03]} 28. a3 {[%clk 0:01:09]}  Rdc8 {[%clk 0:01:57]} 29. g4 {[%clk 0:01:08]}  Rd8 {[%clk 0:01:42]} 30. Kg3 {[%clk 0:01:02]}  g5 {[%clk 0:01:42]} 31. Kg2 {[%clk 0:00:59]}  Kf8 {[%clk 0:01:38]} 32. Re2 {[%clk 0:00:59]}  Ke8 {[%clk 0:01:33]} 33. Rd2 {[%clk 0:00:50]}  Rd6 {[%clk 0:01:27]} 34. Kg3 {[%clk 0:00:46]}  Kd7 {[%clk 0:01:26]} 35. Re2 {[%clk 0:00:45]}  Kc7 {[%clk 0:01:24]} 36. Rd2 {[%clk 0:00:41]}  Kb6 {[%clk 0:01:24]} 37. h4 {[%clk 0:00:34]}  h6 {[%clk 0:01:22]} 38. hxg5 {[%clk 0:00:34]}  hxg5 {[%clk 0:01:22]} 39. Kg2 {[%clk 0:00:35]}  Rh6 {[%clk 0:01:08]} 40. Nf5 {[%clk 0:00:33]}  Rhh1 {[%clk 0:01:08]} 41. f4 {[%clk 0:00:24]}  Rcg1+ {[%clk 0:00:55]} 42. Kf2 {[%clk 0:00:24]}  Rxg4 {[%clk 0:00:48]} 43. Rd6+ {[%clk 0:00:20]}  Kc7 {[%clk 0:00:48]} 44. Rf6 {[%clk 0:00:19]}  Rh2+ {[%clk 0:00:46]} 45. Kf1 {[%clk 0:00:19]}  gxf4 {[%clk 0:00:45]} 46. Rxf7+ {[%clk 0:00:18]}  Kb6 {[%clk 0:00:37]} 47. Rf6+ {[%clk 0:00:17]}  Ka5 {[%clk 0:00:30]} 48. b4+ {[%clk 0:00:16]}  Ka4 {[%clk 0:00:30]} 49. Rxa6+ {[%clk 0:00:16]}  Kb3 {[%clk 0:00:29]} 50. exf4 {[%clk 0:00:17]}  Rxf4+ {[%clk 0:00:28]} 51. Ke1 {[%clk 0:00:15]}  Rxf5 {[%clk 0:00:28]} 0-1


[Site "https://www.chess.com"]

[Event "Titled Tuesday Blitz June 27 Early 2023"]
[White "EdmundPlayer"]
[Black "arenal72"]
[WhiteElo "2306"]
[BlackElo "2375"]
[Result "0-1"]
[Round "8"]
[TimeControl "180+2"]
[Date "2023.06.27"]
[WhiteClock "0:00:00"]
[BlackClock "0:00:56"]
[Board "102"]

1. e4 {[%clk 0:03:00]}  c5 {[%clk 0:02:55]} 2. Nf3 {[%clk 0:02:55]}  e6 {[%clk 0:02:52]} 3. d4 {[%clk 0:02:55]}  cxd4 {[%clk 0:02:52]} 4. Nxd4 {[%clk 0:02:55]}  Qb6 {[%clk 0:02:45]} 5. Nb3 {[%clk 0:02:34]}  a6 {[%clk 0:02:37]} 6. Be3 {[%clk 0:02:34]}  Qc7 {[%clk 0:02:35]} 7. Be2 {[%clk 0:02:02]}  Nf6 {[%clk 0:02:31]} 8. f3 {[%clk 0:01:57]}  d5 {[%clk 0:02:27]} 9. exd5 {[%clk 0:01:52]}  Nxd5 {[%clk 0:02:25]} 10. Bf2 {[%clk 0:01:46]}  b5 {[%clk 0:02:22]} 11. O-O {[%clk 0:01:39]}  Bd6 {[%clk 0:02:20]} 12. g3 {[%clk 0:01:23]}  O-O {[%clk 0:02:19]} 13. N1d2 {[%clk 0:01:21]}  Nd7 {[%clk 0:02:12]} 14. Ne4 {[%clk 0:01:20]}  Be7 {[%clk 0:02:12]} 15. f4 {[%clk 0:01:18]}  Bb7 {[%clk 0:02:10]} 16. Bf3 {[%clk 0:01:18]}  Rfd8 {[%clk 0:02:08]} 17. Qe2 {[%clk 0:01:16]}  Rac8 {[%clk 0:02:04]} 18. Rac1 {[%clk 0:01:04]}  N5f6 {[%clk 0:01:58]} 19. Nbd2 {[%clk 0:00:54]}  Nc5 {[%clk 0:01:50]} 20. Nxc5 {[%clk 0:00:47]}  Bxc5 {[%clk 0:01:44]} 21. Bxb7 {[%clk 0:00:25]}  Qxb7 {[%clk 0:01:43]} 22. Bxc5 {[%clk 0:00:22]}  Rxc5 {[%clk 0:01:43]} 23. Nb3 {[%clk 0:00:23]}  Rcd5 {[%clk 0:01:44]} 24. Rcd1 {[%clk 0:00:22]}  Qd7 {[%clk 0:01:43]} 25. Rxd5 {[%clk 0:00:20]}  Qxd5 {[%clk 0:01:44]} 26. Re1 {[%clk 0:00:13]}  h5 {[%clk 0:01:39]} 27. c3 {[%clk 0:00:12]}  h4 {[%clk 0:01:39]} 28. Nd4 {[%clk 0:00:12]}  h3 {[%clk 0:01:36]} 29. Qf1 {[%clk 0:00:11]}  Qxa2 {[%clk 0:01:31]} 30. Re2 {[%clk 0:00:11]}  b4 {[%clk 0:01:25]} 31. Qxh3 {[%clk 0:00:10]}  bxc3 {[%clk 0:01:25]} 32. bxc3 {[%clk 0:00:11]}  Qa1+ {[%clk 0:01:25]} 33. Qf1 {[%clk 0:00:10]}  Qxc3 {[%clk 0:01:25]} 34. Nf3 {[%clk 0:00:09]}  a5 {[%clk 0:01:20]} 35. Ne5 {[%clk 0:00:07]}  a4 {[%clk 0:01:18]} 36. g4 {[%clk 0:00:05]}  Nd5 {[%clk 0:01:05]} 37. f5 {[%clk 0:00:04]}  Qd4+ {[%clk 0:01:01]} 38. Kg2 {[%clk 0:00:04]}  Nf4+ {[%clk 0:01:01]} 39. Kg3 {[%clk 0:00:02]}  Nxe2+ {[%clk 0:01:00]} 40. Qxe2 {[%clk 0:00:03]}  Qc3+ {[%clk 0:00:57]} 41. Kh4 {[%clk 0:00:00]}  Rd2 {[%clk 0:00:56]} 0-1


[Site "https://www.chess.com"]

[Event "Titled Tuesday Blitz June 27 Early 2023"]
[White "Ovchinnikov, Vsevolod"]
[Black "Dinu, Dumitru-Daniel"]
[WhiteFideId "24176842"]
[BlackFideId "1208403"]
[WhiteElo "2583"]
[BlackElo "2410"]
[Result "1/2-1/2"]
[Round "8"]
[TimeControl "180+2"]
[Date "2023.06.27"]
[WhiteClock "0:00:10"]
[BlackClock "0:00:02"]
[Board "107"]

1. d4 {[%clk 0:03:00]}  Nf6 {[%clk 0:03:00]} 2. c4 {[%clk 0:03:00]}  e6 {[%clk 0:02:59]} 3. g3 {[%clk 0:03:01]}  Bb4+ {[%clk 0:02:56]} 4. Bd2 {[%clk 0:03:00]}  a5 {[%clk 0:02:52]} 5. Bg2 {[%clk 0:03:00]}  O-O {[%clk 0:02:52]} 6. e4 {[%clk 0:03:00]}  d6 {[%clk 0:02:14]} 7. Ne2 {[%clk 0:02:57]}  e5 {[%clk 0:02:11]} 8. O-O {[%clk 0:02:56]}  Re8 {[%clk 0:02:02]} 9. a3 {[%clk 0:02:03]}  Bxd2 {[%clk 0:01:55]} 10. Nxd2 {[%clk 0:02:04]}  a4 {[%clk 0:01:35]} 11. h3 {[%clk 0:01:53]}  Bd7 {[%clk 0:01:16]} 12. f4 {[%clk 0:01:42]}  exd4 {[%clk 0:01:15]} 13. Nxd4 {[%clk 0:01:43]}  Nc6 {[%clk 0:01:16]} 14. Ne2 {[%clk 0:01:39]}  Qe7 {[%clk 0:01:11]} 15. Nc3 {[%clk 0:01:34]}  Nd4 {[%clk 0:00:58]} 16. g4 {[%clk 0:01:31]}  Bc6 {[%clk 0:00:49]} 17. Rc1 {[%clk 0:01:01]}  Nd7 {[%clk 0:00:45]} 18. Nd5 {[%clk 0:00:55]}  Bxd5 {[%clk 0:00:41]} 19. cxd5 {[%clk 0:00:56]}  Nc5 {[%clk 0:00:41]} 20. Rc4 {[%clk 0:00:56]}  Ndb3 {[%clk 0:00:37]} 21. Nb1 {[%clk 0:00:22]}  b5 {[%clk 0:00:33]} 22. Rb4 {[%clk 0:00:22]}  Rab8 {[%clk 0:00:30]} 23. Nc3 {[%clk 0:00:19]}  Qd7 {[%clk 0:00:30]} 24. e5 {[%clk 0:00:09]}  Na6 {[%clk 0:00:27]} 25. Re4 {[%clk 0:00:08]}  Nac5 {[%clk 0:00:26]} 26. Re2 {[%clk 0:00:08]}  b4 {[%clk 0:00:21]} 27. Ne4 {[%clk 0:00:06]}  Nxe4 {[%clk 0:00:19]} 28. Rxe4 {[%clk 0:00:07]}  bxa3 {[%clk 0:00:17]} 29. bxa3 {[%clk 0:00:08]}  Nc5 {[%clk 0:00:16]} 30. Re2 {[%clk 0:00:08]}  Rb3 {[%clk 0:00:16]} 31. Rf3 {[%clk 0:00:08]}  Qb5 {[%clk 0:00:14]} 32. Kh2 {[%clk 0:00:08]}  Rxf3 {[%clk 0:00:11]} 33. Bxf3 {[%clk 0:00:09]}  Qb3 {[%clk 0:00:11]} 34. Re1 {[%clk 0:00:08]}  Qxd1 {[%clk 0:00:08]} 35. Bxd1 {[%clk 0:00:08]}  Nd3 {[%clk 0:00:06]} 36. Re3 {[%clk 0:00:08]}  Nxf4 {[%clk 0:00:06]} 37. Bxa4 {[%clk 0:00:08]}  Rxe5 {[%clk 0:00:05]} 38. Rxe5 {[%clk 0:00:09]}  dxe5 {[%clk 0:00:06]} 39. Bc6 {[%clk 0:00:10]}  Kf8 {[%clk 0:00:05]} 40. a4 {[%clk 0:00:10]}  Nd3 {[%clk 0:00:03]} 41. a5 {[%clk 0:00:11]}  Nc5 {[%clk 0:00:04]} 42. Bb7 {[%clk 0:00:11]}  Ke7 {[%clk 0:00:02]} 43. a6 {[%clk 0:00:12]}  Nd7 {[%clk 0:00:02]} 44. a7 {[%clk 0:00:12]}  Nb6 {[%clk 0:00:03]} 45. a8=Q {[%clk 0:00:13]}  Nxa8 {[%clk 0:00:03]} 46. Bxa8 {[%clk 0:00:14]}  Kd6 {[%clk 0:00:04]} 47. Kg3 {[%clk 0:00:14]}  f6 {[%clk 0:00:04]} 48. Kf3 {[%clk 0:00:14]}  g6 {[%clk 0:00:04]} 49. Ke4 {[%clk 0:00:15]}  Kc5 {[%clk 0:00:03]} 50. Bc6 {[%clk 0:00:15]}  Kd6 {[%clk 0:00:03]} 51. Bb7 {[%clk 0:00:13]}  Kc5 {[%clk 0:00:03]} 52. Bc8 {[%clk 0:00:14]}  Kd6 {[%clk 0:00:04]} 53. Be6 {[%clk 0:00:14]}  c6 {[%clk 0:00:03]} 54. Bg8 {[%clk 0:00:06]}  cxd5+ {[%clk 0:00:03]} 55. Kf3 {[%clk 0:00:06]}  h6 {[%clk 0:00:02]} 56. Bf7 {[%clk 0:00:06]}  g5 {[%clk 0:00:03]} 57. Ke3 {[%clk 0:00:07]}  Kc5 {[%clk 0:00:02]} 58. Kd3 {[%clk 0:00:08]}  Kd6 {[%clk 0:00:01]} 59. Kc3 {[%clk 0:00:08]}  Kc5 {[%clk 0:00:02]} 60. Kd3 {[%clk 0:00:08]}  e4+ {[%clk 0:00:02]} 61. Ke3 {[%clk 0:00:08]}  Kc4 {[%clk 0:00:02]} 62. Be6 {[%clk 0:00:08]}  Kc5 {[%clk 0:00:02]} 63. Bg8 {[%clk 0:00:08]}  Kc4 {[%clk 0:00:02]} 64. Ke2 {[%clk 0:00:08]}  Kd4 {[%clk 0:00:02]} 65. Kd2 {[%clk 0:00:08]}  Ke5 {[%clk 0:00:03]} 66. Ke3 {[%clk 0:00:09]}  d4+ {[%clk 0:00:03]} 67. Ke2 {[%clk 0:00:09]}  Kf4 {[%clk 0:00:04]} 68. Bd5 {[%clk 0:00:09]}  e3 {[%clk 0:00:02]} 69. Bg2 {[%clk 0:00:09]}  Kg3 {[%clk 0:00:03]} 70. Bf1 {[%clk 0:00:09]}  Kh2 {[%clk 0:00:01]} 71. Kf3 {[%clk 0:00:09]}  Kg1 {[%clk 0:00:02]} 72. Be2 {[%clk 0:00:09]}  Kh2 {[%clk 0:00:02]} 73. Bf1 {[%clk 0:00:10]}  Kg1 {[%clk 0:00:02]} 74. Bd3 {[%clk 0:00:10]}  Kh2 {[%clk 0:00:02]} 75. Bf1 {[%clk 0:00:10]} 1/2-1/2


[Site "https://www.chess.com"]

[Event "Titled Tuesday Blitz June 27 Early 2023"]
[White "Szyszylo, Rafal"]
[Black "chess123456s"]
[WhiteFideId "1109626"]
[WhiteElo "2399"]
[BlackElo "2548"]
[Result "0-1"]
[Round "8"]
[TimeControl "180+2"]
[Date "2023.06.27"]
[WhiteClock "0:00:00"]
[BlackClock "0:01:26"]
[Board "109"]

1. e4 {[%clk 0:02:55]}  e5 {[%clk 0:02:59]} 2. Bc4 {[%clk 0:02:53]}  Nf6 {[%clk 0:02:59]} 3. Nc3 {[%clk 0:02:54]}  Bc5 {[%clk 0:02:58]} 4. d3 {[%clk 0:02:54]}  c6 {[%clk 0:02:59]} 5. Qf3 {[%clk 0:02:52]}  d6 {[%clk 0:02:57]} 6. Nge2 {[%clk 0:02:40]}  a5 {[%clk 0:02:52]} 7. a4 {[%clk 0:02:39]}  h5 {[%clk 0:02:50]} 8. h3 {[%clk 0:02:37]}  Nbd7 {[%clk 0:02:43]} 9. Bg5 {[%clk 0:02:34]}  Nf8 {[%clk 0:02:35]} 10. O-O-O {[%clk 0:02:30]}  Be6 {[%clk 0:02:34]} 11. Ng3 {[%clk 0:02:24]}  Qe7 {[%clk 0:02:27]} 12. Nf5 {[%clk 0:02:17]}  Bxf5 {[%clk 0:02:26]} 13. Qxf5 {[%clk 0:02:16]}  Ne6 {[%clk 0:02:26]} 14. Bxf6 {[%clk 0:01:28]}  Qxf6 {[%clk 0:02:24]} 15. Bxe6 {[%clk 0:01:24]}  fxe6 {[%clk 0:02:23]} 16. Qxf6 {[%clk 0:01:19]}  gxf6 {[%clk 0:02:24]} 17. f3 {[%clk 0:01:18]}  h4 {[%clk 0:02:23]} 18. Ne2 {[%clk 0:01:12]}  Rg8 {[%clk 0:02:22]} 19. Rh2 {[%clk 0:01:12]}  Ke7 {[%clk 0:02:15]} 20. c3 {[%clk 0:01:11]}  Be3+ {[%clk 0:02:14]} 21. Kc2 {[%clk 0:01:12]}  Rg6 {[%clk 0:02:13]} 22. d4 {[%clk 0:01:01]}  Rag8 {[%clk 0:02:05]} 23. dxe5 {[%clk 0:01:01]}  fxe5 {[%clk 0:02:04]} 24. Rd3 {[%clk 0:00:59]}  Ba7 {[%clk 0:01:58]} 25. g4 {[%clk 0:00:53]}  hxg3 {[%clk 0:01:57]} 26. Rg2 {[%clk 0:00:53]}  Bf2 {[%clk 0:01:55]} 27. f4 {[%clk 0:00:52]}  exf4 {[%clk 0:01:51]} 28. Nxf4 {[%clk 0:00:52]}  Rh6 {[%clk 0:01:50]} 29. Rf3 {[%clk 0:00:49]}  Rf6 {[%clk 0:01:28]} 30. Kd3 {[%clk 0:00:25]}  Rgf8 {[%clk 0:01:27]} 31. Rfxg3 {[%clk 0:00:04]}  Bxg3 {[%clk 0:01:26]} 32. Nh5 {[%clk 0:00:04]}  Rf3+ {[%clk 0:01:25]} 33. Ke2 {[%clk 0:00:00]}  Be5 {[%clk 0:01:26]} 0-1


[Site "https://www.chess.com"]

[Event "Titled Tuesday Blitz June 27 Early 2023"]
[White "Chor, Kevin"]
[Black "Nithyalakshmi, Sivanesan"]
[WhiteFideId "2090740"]
[BlackFideId "5706955"]
[WhiteElo "2530"]
[BlackElo "2361"]
[Result "1-0"]
[Round "8"]
[TimeControl "180+2"]
[Date "2023.06.27"]
[WhiteClock "0:00:14"]
[BlackClock "0:00:14"]
[Board "113"]

1. e4 {[%clk 0:02:57]}  e6 {[%clk 0:02:57]} 2. d4 {[%clk 0:02:52]}  d5 {[%clk 0:02:58]} 3. Nd2 {[%clk 0:02:53]}  Nc6 {[%clk 0:02:54]} 4. Ngf3 {[%clk 0:02:52]}  Nf6 {[%clk 0:02:50]} 5. e5 {[%clk 0:02:53]}  Nd7 {[%clk 0:02:50]} 6. Bd3 {[%clk 0:02:53]}  f6 {[%clk 0:02:50]} 7. exf6 {[%clk 0:02:54]}  Qxf6 {[%clk 0:02:50]} 8. Nb3 {[%clk 0:02:51]}  h6 {[%clk 0:02:47]} 9. O-O {[%clk 0:02:50]}  Bd6 {[%clk 0:02:45]} 10. c4 {[%clk 0:02:47]}  dxc4 {[%clk 0:02:37]} 11. Bxc4 {[%clk 0:02:47]}  Nb6 {[%clk 0:02:37]} 12. Bb5 {[%clk 0:02:39]}  Bd7 {[%clk 0:02:33]} 13. Re1 {[%clk 0:02:37]}  O-O {[%clk 0:02:32]} 14. Be3 {[%clk 0:02:30]}  Nd5 {[%clk 0:02:28]} 15. Rc1 {[%clk 0:02:21]}  a6 {[%clk 0:02:21]} 16. Bc4 {[%clk 0:02:17]}  Nce7 {[%clk 0:02:13]} 17. Qe2 {[%clk 0:02:00]}  Bb4 {[%clk 0:02:11]} 18. Red1 {[%clk 0:01:57]}  Bc6 {[%clk 0:02:09]} 19. Ne5 {[%clk 0:01:54]}  Bd6 {[%clk 0:01:53]} 20. Bd2 {[%clk 0:01:30]}  Rae8 {[%clk 0:01:40]} 21. Nc5 {[%clk 0:01:18]}  Bxc5 {[%clk 0:01:26]} 22. dxc5 {[%clk 0:01:19]}  Nf5 {[%clk 0:00:56]} 23. Nf3 {[%clk 0:00:51]}  Qxb2 {[%clk 0:00:47]} 24. Ne5 {[%clk 0:00:44]}  Nd4 {[%clk 0:00:45]} 25. Qg4 {[%clk 0:00:41]}  Nf6 {[%clk 0:00:39]} 26. Qh4 {[%clk 0:00:31]}  Nf5 {[%clk 0:00:38]} 27. Qf4 {[%clk 0:00:28]}  g5 {[%clk 0:00:36]} 28. Qxf5 {[%clk 0:00:24]}  Nh7 {[%clk 0:00:18]} 29. Qg6+ {[%clk 0:00:21]}  Kh8 {[%clk 0:00:17]} 30. Nf7+ {[%clk 0:00:20]}  Rxf7 {[%clk 0:00:17]} 31. Qxf7 {[%clk 0:00:21]}  Rf8 {[%clk 0:00:16]} 32. Bc3+ {[%clk 0:00:18]}  Qxc3 {[%clk 0:00:15]} 33. Qxf8+ {[%clk 0:00:18]}  Nxf8 {[%clk 0:00:15]} 34. Rxc3 {[%clk 0:00:19]}  Ng6 {[%clk 0:00:16]} 35. Bxe6 {[%clk 0:00:18]}  Kg7 {[%clk 0:00:17]} 36. Bd5 {[%clk 0:00:17]}  Bb5 {[%clk 0:00:16]} 37. Bxb7 {[%clk 0:00:17]}  Nf4 {[%clk 0:00:16]} 38. Bf3 {[%clk 0:00:17]}  Ne6 {[%clk 0:00:16]} 39. Re1 {[%clk 0:00:16]}  Kf6 {[%clk 0:00:16]} 40. Rxe6+ {[%clk 0:00:15]}  Kxe6 {[%clk 0:00:14]} 41. a3 {[%clk 0:00:14]} 1-0


[Site "https://www.chess.com"]